Cogmind - Beta 13 @@@ ROGUE MODE // 2024.04.06 @ 16:13:08 Player: Flex Pexico Result: Destroyed by H-55 Commando with Gauss Rifle Performance ------------- Evolutions (2) 1000 Regions Visited (5) 1000 Robots Destroyed (53) 265 Value Destroyed (1346) 1346 Prototype IDs (25) 500 Alien Tech Used (0) 0 Bonus (403) 403 TOTAL SCORE: 4514 Bonus ------- High Alert Combat Kills 22 Follower Combat Kills 81 Aligned with FarCom 300 Cogmind --------- Core Integrity 0/550 Matter 300/300 Energy 100/100 System Corruption 0% Temperature Cool (0) Movement Core (450) Ox8 Location -8/Materials Parts ------- > --- POWER (1) -------- (None) > --- PROPULSION (3) --- (None) > --- UTILITY (5) ------ Large Storage Unit Structural Scanner Signal Interpreter Improved Power Shielding > --- WEAPON (2) ------- Heavy Flail > --- INVENTORY (15) --- Light Deuterium Engine Cesium-ion Thruster Compact Matter Pod (150) Recoil Stabilizer Ion Cannon Firepult Peak State ------------ > --- POWER ------------ Light Deuterium Engine > --- PROPULSION ------- Compact Wheel Compact Wheel Armored Wheel > --- UTILITY ---------- Large Storage Unit Structural Scanner Signal Interpreter > --- WEAPON ----------- Ion Cannon Heavy Flail > --- INVENTORY -------- Light Deuterium Engine Cesium-ion Thruster Compact Matter Pod Recoil Stabilizer EM Pulse Cannon Firepult [Rating: 19] Favorites ----------- Power Light Ion Engine Engine Light Ion Engine Propulsion Compact Wheel Treads Light Treads Leg Aluminum Leg Wheel Compact Wheel Flight Unit VTOL Module Utility Large Storage Unit Device Structural Scanner Storage Large Storage Unit Processor Signal Interpreter Protection Light Armor Plating Weapon EM Pulse Gun Energy Gun EM Pulse Gun Energy Cannon EM Pulse Cannon Ballistic Gun Light Assault Rifle Launcher Grenade Launcher Special Weapon Mining Laser Impact Weapon Heavy Flail Build | -11 -10 -10 -10 -9 -8 ------- Run | Yrd Mat Min Exi Min Mat Slots Evolved 4 | . . . . . 4 Power . | . . . . . . Propulsion 1 | . . . . . 1 Utility 3 | . . . . . 3 Weapon . | . . . . . . Parts Attached 63 | 9 22 . 2 1 29 Power 5 | 1 1 . . . 3 Engine 5 | 1 1 . . . 3 Core . | . . . . . . Reactor . | . . . . . . Propulsion 19 | 2 9 . . . 8 Treads 3 | . 1 . . . 2 Leg 4 | 2 2 . . . . Wheel 9 | . 6 . . . 3 Hover . | . . . . . . Flight 3 | . . . . . 3 Utility 10 | 2 3 . . . 5 Device 4 | 1 1 . . . 2 Storage 3 | 1 1 . . . 1 Processor 1 | . 1 . . . . Hackware . | . . . . . . Protection 2 | . . . . . 2 Artifact . | . . . . . . Weapon 29 | 4 9 . 2 1 13 Energy Gun 11 | 4 6 . 1 . . Energy Cannon 7 | . . . . . 7 Ballistic Gun 2 | . . . 1 . 1 Ballistic Cannon . | . . . . . . Launcher 6 | . 3 . . 1 2 Special Weapon 1 | . . . . . 1 Impact Weapon 2 | . . . . . 2 Slashing Weapon . | . . . . . . Piercing Weapon . | . . . . . . Special Melee Weapon . | . . . . . . Unidentified Prototypes 2 | . . . . . 2 Parts Lost 24 | . 8 . . . 16 Power 3 | . 1 . . . 2 Propulsion 8 | . 2 . . . 6 Utility 3 | . 1 . . . 2 Weapon 10 | . 4 . . . 6 Highest Loss Streak 8 | . 4 . . . 8 To Critical Strikes . | . . . . . . Average Slot Usage (%) 86 | . 93 100 100 100 76 Engine 10 | . 13 14 14 14 7 Treads 5 | . 4 . . . 9 Leg 1 | . 7 . . . . Wheel 14 | . 15 28 28 28 7 Flight 1 | . . . . . 2 Device 7 | . 8 . . . 10 Storage 10 | . 14 14 14 14 7 Processor 8 | . 1 14 14 14 9 Protection 2 | . . . . . 4 Energy Gun 14 | . 25 28 28 14 2 Energy Cannon 5 | . . . . . 10 Launcher 2 | . 1 . . 14 3 Naked Turns . | . . . . . . Heaviest Build 41 | 15 31 27 27 29 41 Greatest Support 44 | 20 32 32 32 32 44 Greatest Overweight (x) 3 | 2 2 . . . 3 Average Overweight (x) . | . . . . . . Largest Inventory Capacity 15 | 8 15 15 15 15 15 Average Capacity 13 | 6 13 15 15 15 13 Most Carried 11 | 5 8 7 10 9 11 Average Carried 6 | 2 5 4 8 8 6 Final Capacity 15 | 8 15 15 15 15 15 Final Carried 9 | 4 5 7 8 9 7 Class Distribution -------------------- 76% | Mutant 11% | Skirmisher 7% | Scavenger-Mutant 3% | Sprinter Dominant Class ---------------- Mutant | -10/Materials Mutant | -10/Mines Mutant | -10/Exiles Mutant | -9/Mines Mutant | -8/Materials Resources | -11 -10 -10 -10 -9 -8 ----------- Run | Yrd Mat Min Exi Min Mat Matter Collected 903 | 158 323 63 . 9 350 Remotely . | . . . . . . Salvage Created 1829 | 103 672 . . 38 1016 Parts 93 | 12 43 . . 6 32 Haulers Intercepted 2 | . 1 . . . 1 Recyclers Shooed 2 | . . . . . 2 Parts Field Recycled . | . . . . . . Retrieved Matter . | . . . . . . Parts Self-Destructed . | . . . . . . Prevented . | . . . . . . Kills | -11 -10 -10 -10 -9 -8 ------- Run | Yrd Mat Min Exi Min Mat Combat Hostiles Destroyed 35 | . 18 . . 4 13 Melee 2 | . . . . . 2 Guns 11 | . 9 . . 1 1 Cannons 3 | . . . . . 3 AOE 14 | . 9 . . 3 2 Classes Destroyed 12 | 2 6 . . . 4 Worker 2 | . . . . . 2 Builder 3 | . 3 . . . . Tunneler 2 | 2 . . . . . Hauler 2 | . 1 . . . 1 Recycler 5 | 1 . . . . 4 Operator 2 | . 1 . . . 1 Watcher 2 | . 2 . . . . Swarmer 10 | . 6 . . 4 . Grunt 20 | . 12 . . . 8 Duelist 1 | . . . . . 1 Sentry 3 | . . . . . 3 Hunter 1 | . . . . . 1 Best Kill Streak 6 | 3 6 . . 4 6 Combat Bots Only 5 | . 5 . . 4 3 Max Kills in Single Turn 4 | 2 4 . . 2 1 Gunslinging . | . . . . . . Exploded 3 | . 3 . . 2 1 Melee 1 | . . . . . 1 Uniques/NPCs Destroyed . | . . . . . . Combat | -11 -10 -10 -10 -9 -8 -------- Run | Yrd Mat Min Exi Min Mat Hostile Shots Fired 220 | . 56 1 . 8 155 Missed 66 | . 13 . . 4 49 Damage Taken 2663 | 8 847 7 . 32 1769 Core 750 | 4 189 . . . 557 Absorbed by Shields . | . . . . . . Core Remaining (%) 60 | 98 . . . 22 . Volleys Fired 71 | 3 36 . . 2 30 Largest 2 | 2 2 . . 2 2 Hottest 123 | 90 80 . . 95 123 Shots Fired 124 | 6 69 . . 4 45 Gun 91 | 6 64 . . 2 19 Cannon 19 | . . . . . 19 Launcher 14 | . 5 . . 2 7 Special . | . . . . . . Kinetic 9 | . . . . . 9 Thermal 22 | 3 . . . 2 17 Explosive 14 | . 5 . . 2 7 Electromagnetic 79 | 3 64 . . . 12 Robot Hit Streak 8 | 3 8 . . 5 8 Robot Miss Streak 3 | 1 2 . . . 3 Penetration Max . | . . . . . . Secondary Targets 2 | . 1 . . . 1 Max Gunslinging Chain 1 | . 1 . . . 1 Shots Hit Robots 105 | 4 48 . . 3 50 Core Hits 61 | 3 34 . . 4 20 Critical Kills 1 | . . . . . 1 Critical Parts Destroyed 2 | . . . . . 2 Critical Strikes 8 | . 2 . . . 6 Burn 1 | . . . . . 1 Corrupt 3 | . 2 . . . 1 Smash 4 | . . . . . 4 Melee Attacks 25 | . . . . . 25 Impact 25 | . . . . . 25 Slashing . | . . . . . . Piercing . | . . . . . . Sneak Attacks 5 | . . . . . 5 Combat Hostiles . | . . . . . . Follow-up Attacks . | . . . . . . Damage Inflicted 3644 | 98 1403 . . 136 2007 Guns 899 | 42 651 . . 29 177 Cannons 336 | . . . . . 336 Explosions 1307 | 56 752 . . 107 392 Melee 1084 | . . . . . 1084 Ramming 18 | . . . . . 18 Kinetic 30 | . . . . . 30 Thermal 721 | 56 374 . . 29 262 Explosive 877 | . 378 . . 107 392 Electromagnetic 914 | 42 651 . . . 221 Impact 1084 | . . . . . 1084 Slashing . | . . . . . . Piercing . | . . . . . . Highest Corruption . | . . . . . . Average Corruption . | . . . . . . Corruption Purged . | . . . . . . Corruption Blocked . | . . . . . . Overload Shots . | . . . . . . Overflow Damage 582 | . 189 . . . 393 Projectiles . | . . . . . . Explosions 189 | . 189 . . . . Melee 393 | . . . . . 393 Knockbacks 6 | . . . . . 6 Impact 5 | . . . . . 5 Kinetic . | . . . . . . Secondary 1 | . . . . . 1 Self-Inflicted Damage 436 | 8 384 . . . 44 Shots 8 | 1 6 . . . 1 Rammed 3 | . . . . . 3 Targets Rammed 3 | . . . . . 3 Kicked . | . . . . . . Crushed . | . . . . . . Highest Temperature 313 | 102 117 . . 66 313 Average Temperature 56 | 51 32 . . 34 90 Received Heat Transfer 999 | . 225 . . . 774 Effects 2 | . . . . . 2 Interference 2 | . . . . . 2 Siege Activations . | . . . . . . Robots Corrupted 1 | . . . . . 1 Combat Hostiles 1 | . . . . . 1 Parts Fried 18 | . 5 . . . 13 Impact Corruptions 12 | . . . . . 12 Robots Melted . | . . . . . . Combat Hostiles . | . . . . . . Parts Melted 2 | 1 . . . . 1 Heat Transferred 1066 | 100 300 . . 74 592 Parts Sabotaged . | . . . . . . Parts Stolen . | . . . . . . Parts Stripped . | . . . . . . Power Chain Reactions 6 | 1 5 . . . . Alert | -11 -10 -10 -10 -9 -8 ------- Run | Yrd Mat Min Exi Min Mat Peak Influence 531 | 15 531 320 . 102 292 Initial 166 | . 9 166 . . 39 Average 124 | 2 276 189 . 94 39 Maximum Alert Level 2 | . 2 1 . . 1 Low Security (%) 71 | 100 19 78 . 100 95 Level 1 18 | . 45 21 . . 4 Level 2 10 | . 34 . . . . Level 3 . | . . . . . . Level 4 . | . . . . . . Level 5 . | . . . . . . High Security . | . . . . . . Max Security . | . . . . . . Squads Dispatched 10 | . 7 . . . 3 Investigation 7 | . 6 . . . 1 Extermination . | . . . . . . Reinforcement 3 | . 1 . . . 2 Assault . | . . . . . . Garrison . | . . . . . . Intercept . | . . . . . . Searches Triggered . | . . . . . . Construction Impeded . | . . . . . . Haulers Reinforced . | . . . . . . Active Scanning Responses . | . . . . . . Cargo Convoy Interrupts . | . . . . . . Stealth | -11 -10 -10 -10 -9 -8 --------- Run | Yrd Mat Min Exi Min Mat Distress Signals 11 | . 3 . . . 8 Communications Jammed . | . . . . . . Distress Signals . | . . . . . . Times Spotted 68 | . 30 5 . 4 29 Peak Tracking Total 12 | . 6 3 . 4 12 Tactical Retreats 7 | . 4 . . . 3 Traps | -11 -10 -10 -10 -9 -8 ------- Run | Yrd Mat Min Exi Min Mat Traps Triggered 3 | . 3 . . . . Indirectly . | . . . . . . Trap Hack Attempts . | . . . . . . Triggered . | . . . . . . Disarmed . | . . . . . . Reprogrammed . | . . . . . . Reused . | . . . . . . Traps Extracted . | . . . . . . Installed . | . . . . . . Triggered . | . . . . . . Machines | -11 -10 -10 -10 -9 -8 ---------- Run | Yrd Mat Min Exi Min Mat Machines Disabled 9 | . 6 . . . 3 Max in Single Turn 4 | . 4 . . . 2 Machines Repaired . | . . . . . . Machines Dismantled . | . . . . . . Machines Sabotaged . | . . . . . . Overloaded Fab Kills . | . . . . . . Hacking | -11 -10 -10 -10 -9 -8 --------- Run | Yrd Mat Min Exi Min Mat Machines Accessed 9 | . 6 . 1 . 2 Terminals 8 | . 6 . . . 2 Fabricators . | . . . . . . Repair Stations . | . . . . . . Recycling Units . | . . . . . . Scanalyzers . | . . . . . . Garrison Access . | . . . . . . Total Hacks 22 | . 16 . 1 . 5 Successful 8 | . 5 . 1 . 2 Failed 14 | . 11 . . . 3 Catastrophic 2 | . 1 . . . 1 Database Lockouts . | . . . . . . Manual 14 | . 9 . 1 . 4 Terminals 21 | . 16 . . . 5 Fabricators . | . . . . . . Repair Stations . | . . . . . . Recycling Units . | . . . . . . Scanalyzers . | . . . . . . Garrison Access . | . . . . . . Terminal Hacks 7 | . 5 . 1 . 1 Dispatch Records 2 | . 1 . . . 1 Recall Investigation 1 | . 1 . . . . Registered Components 1 | . 1 . . . . Zone Layout 2 | . 2 . . . . Derelict Proto ID Bank 1 | . . . 1 . . Fabricator Hacks . | . . . . . . Repair Station Hacks . | . . . . . . Recycling Unit Hacks . | . . . . . . Scanalyzer . | . . . . . . Garrison Access Hacks . | . . . . . . Unauthorized Hacks 1 | . . . . . 1 Terminals 1 | . . . . . 1 Assimilate 1 | . . . . . 1 Fabricators . | . . . . . . Repair Stations . | . . . . . . Recycling Units . | . . . . . . Scanalyzers . | . . . . . . Garrison Access . | . . . . . . Data Cores Recovered . | . . . . . . Used . | . . . . . . Hacking Detections 6 | . 5 . . . 1 Full Trace Events 4 | . 3 . . . 1 Feedback Events . | . . . . . . Feedback Blocked . | . . . . . . Robot Schematics Acquired . | . . . . . . Robots Built . | . . . . . . Authchips . | . . . . . . Time . | . . . . . . Total Robot Build Rating . | . . . . . . Part Schematics Acquired . | . . . . . . Parts Built . | . . . . . . Authchips . | . . . . . . Time . | . . . . . . Total Part Build Rating . | . . . . . . Parts Repaired . | . . . . . . Time . | . . . . . . Parts Recycled . | . . . . . . Recycled Matter . | . . . . . . Retrieved Matter . | . . . . . . Retrieved Components . | . . . . . . Parts Scanalyzed . | . . . . . . Part Schematics Acquired . | . . . . . . Parts Damaged . | . . . . . . Bothacking | -11 -10 -10 -10 -9 -8 ------------ Run | Yrd Mat Min Exi Min Mat Used RIF Installer . | . . . . . . Robots Hacked . | . . . . . . Non-combat . | . . . . . . Combat . | . . . . . . Robot Hacks Applied . | . . . . . . Relay Couplers Released . | . . . . . . Fabnet Peak Effective % . | . . . . . . Robots Rewired . | . . . . . . Allies Hacked . | . . . . . . Hacks Repelled . | . . . . . . Allies | -11 -10 -10 -10 -9 -8 -------- Run | Yrd Mat Min Exi Min Mat Total Allies 3 | . . 3 . . . Largest Group 3 | . . 3 3 . . Highest-Rated Group 40 | . . 40 40 . . Highest-Rated Ally 16 | . . 16 16 . . Total Orders . | . . . . . . Ally Attacks 10 | . . 10 . . . Total Damage 107 | . . 107 . . . Kills 5 | . . 5 . . . Allies Corrupted . | . . . . . . Allies Melted . | . . . . . . Intel | -11 -10 -10 -10 -9 -8 ------- Run | Yrd Mat Min Exi Min Mat Robot Analysis Total . | . . . . . . Derelict Logs Recovered 2 | . . 2 . . . Drone Launches . | . . . . . . Drone Recoveries . | . . . . . . Exploration | -11 -10 -10 -10 -9 -8 ------------- Run | Yrd Mat Min Exi Min Mat Turns Passed 4110 | 87 1076 342 492 45 2068 Spaces Moved 2500 | 48 776 304 487 37 848 Core 45 | 15 . . . . 30 Treads 363 | . 15 . . . 348 Legs 210 | 33 177 . . . . Wheels 1692 | . 584 304 487 37 280 Hover . | . . . . . . Flight 190 | . . . . . 190 Fastest Speed 29 | 50 100 100 100 100 29 Average Speed 117 | 121 113 100 100 100 137 Slowest Speed 240 | 150 240 100 100 100 240 Overloaded Moves . | . . . . . . Propulsion Burnouts . | . . . . . . Robots Hopped . | . . . . . . Cave-ins Triggered . | . . . . . . Exploration Rate (%) 51 | 3 98 59 90 15 42 Regions Visited 5 Branch Regions 3 Pre-discovered Areas . | . . . . . . Known Exits Taken 4 | . 1 1 1 1 . Unknown Exits Taken 1 | 1 . . . . . Scrap Searched 1 | . . 1 . . . Spaces Dug . | . . . . . . Terrain Destroyed 187 | 2 113 . . 14 58 Melee . | . . . . . . Projectile 1 | . . . . . 1 AOE 186 | 2 113 . . 14 57 Terrain Rammed . | . . . . . . Walls Destroyed . | . . . . . . Machines Disabled . | . . . . . . Actions | -11 -10 -10 -10 -9 -8 --------- Run | Yrd Mat Min Exi Min Mat Total 3524 | 70 910 342 492 41 1669 Wait 772 | . 39 35 . . 698 Move 2495 | 47 775 303 486 36 848 Hop . | . . . . . . Pick Up 60 | 11 21 3 2 1 22 Fast Attach 4 | . . . . . 4 Attach 51 | 7 19 . 2 1 22 Detach 9 | . 5 . . 1 3 Swap 8 | 2 3 . . . 3 Drop 26 | . 12 1 2 . 11 Fire 71 | 3 36 . . 2 30 Melee 25 | . . . . . 25 Ram 3 | . . . . . 3 Kick . | . . . . . . Crush . | . . . . . . Escape Stasis . | . . . . . . Rewire . | . . . . . . Trap . | . . . . . . Miscellaneous . | . . . . . . Route ------- -11/Scrapyard -10/Materials (discovered 4 exits: *Mat x3 / *Min) -10/Mines (discovered 4 exits: *Mat x2 / *Exi / Sub) -10/Exiles -9/Mines -8/Materials History --------- Turn | Location | Event 17 | -11/Scrapyard | Discovered new exit (range 16) 88 | -11/Scrapyard | Entered Materials 342 | -10/Materials | Discovered new exit (range 11) 372 | -10/Materials | Build established: Mutant 386 | -10/Materials | Lost 4 parts (2n2w) 460 | -10/Materials | Discovered new exit (range 10) 726 | -10/Materials | Discovered new exit (range 16) 755 | -10/Materials | Core integrity fell below 50% 961 | -10/Materials | Discovered new exit (range 15) 1069 | -10/Materials | Identified exit to Materials 1162 | -10/Materials | Identified exit to Mines 1164 | -10/Materials | Entered Mines 1189 | -10/Mines | Discovered exit to Materials (range 9) 1278 | -10/Mines | Identified exit to Subcaves 1342 | -10/Mines | Discovered exit to Materials (range 9) 1377 | -10/Mines | Assisted by bots powering up and referring to "LRC-V3" 1441 | -10/Mines | Learned Materials interactive machine intel 1501 | -10/Mines | Deemed a non-threat by the Exiles lab entrance 1502 | -10/Mines | Discovered new exit (range 5) 1505 | -10/Mines | Identified exit to Exiles 1506 | -10/Mines | Entered Exiles 1506 | -10/Exiles | Accompanied by 3 allies 1531 | -10/Exiles | Met 8R-AWN 1547 | -10/Exiles | Met EX-HEX 1579 | -10/Exiles | Met EX-BIN 1603 | -10/Exiles | Aligned with FarCom system 1604 | -10/Exiles | Given EX-Vault access code 1627 | -10/Exiles | Opened EX-Vault 1634 | -10/Exiles | Found Firepult 1655 | -10/Exiles | Warned to stay clear of 0b10 Research branches 1684 | -10/Exiles | Met EX-DEC 1761 | -10/Exiles | Discovered new exit (range 10) 1824 | -10/Exiles | Visited The Gauntlet 1997 | -10/Exiles | Identified exit to Mines 1998 | -10/Exiles | Left Exiles lab with Firepult 1998 | -10/Exiles | Entered Mines 1999 | -9/Mines | Met a Derelict bent on vengeance 2027 | -9/Mines | Discovered new exit (range 15) 2042 | -9/Mines | Identified exit to Materials 2043 | -9/Mines | Entered Materials 2043 | -8/Materials | Evolved 4 slots: Propulsion x1, Utility x3 2044 | -8/Materials | Loaded intel: 19 interactive machine locations 2379 | -8/Materials | Build established: Skirmisher 2641 | -8/Materials | Lost 8 parts (1p2n1u4w) 2752 | -8/Materials | Core integrity fell below 50% 3103 | -8/Materials | Build established: Scavenger-Mutant 3437 | -8/Materials | Build established: Mutant 4053 | -8/Materials | Core integrity fell below 20% 4111 | -8/Materials | Destroyed by H-55 Commando with Gauss Rifle Last Messages --------------- G-47 Trooper destroyed. Critical hit (Burn: +37). G-47 Trooper suffers critical hit (Smash). Destroyed Aluminum Leg. Destroyed Lgt. Nuclear Core. G-47 Trooper system corrupted by crushing effect. G-47 Trooper knocked back. Slug penetrates Door. G-47 Trooper system terminally corrupted. Critical hit (Burn: +37). Slug penetrates Wall. EM Pulse Cannon destroyed. Slug penetrates Wall. Arm. Wheel destroyed. Acquired 10 matter. G-47 Trooper knocked back. Slug penetrates Wall. Com. Wheel destroyed. Slug penetrates Wall. Map ----- +----------------------------------------------------+ | ?????????? # ## # % ##??? | | ?########### ## """ """ # ############ ##??? | | ?########### ## """ """ ## ############# ##??? | | ?## # ## """ """ ## ############# ##??? | | ?## # ## ## ############# ###?? | | ?## # ############# ## = ## ###?? | | ?## """ # ## # % ##?? | | ?## """"" + ## """ """ # ##?? | | ?## """"" # ## """ """[+% T ##?? | | ?## """"" ### #####+########## """ """ # ##?? | | ?## """ ### ## ###### """ """ # ##?? | | ?## ### ## """ ##??## """ """ ## #####?? | | ?############# ## ! """ ##??## ## #####?? | | ?############# ## """ ##??############# ##????? | | ????????????## ## ]##????########### ##????? | | ????????????## ## """ ##?????????????##%##????? | | ????????????## ## """ ##??????????##### ## ???? | | ????????????## ## """ ################# ## ???? | | ????????????## ## ############## # | | ????????????##+############## ###### | | ????????????## """ # ## T | | ????????????##w"Y" # [=## ] ### | | ????????????## # ==## ####### ### ?? | | ????????????## # ! ## ##############???? | | ????????????## # !%! ## ###??#########???? | | ????????????## # *g!@=## #######??????????? | | ????????? #######/######Y### ######??????????? | | ????????? # w%%%* [ ????? | | ????????? # h ????? | | ????????# # ???? | | ????????# ###+######+### ##########+##???? | | ????????### # ## ###/######### ???? | | ????????### ?????????????"# ????????"?????? | | ?????????## ??????????????T????? ????????"G"????? | | ?????????## ??????????????"?????? ???????"?"????" | | ?????????## ?????????????????????? ??????????????" | | ?????????????????????????????????????????????????? | | ?????????????????????????????????????????????????? | | ?????????????????????????????????????????????????? | | ?????????????????????????????????????????????????? | | ?????????????????????????????????????????????????? | | ??????????????????????????Y??????????????????????? | | ?????????????????????????????????????????????????? | | ?????????????????????????????????????????????????? | | ?????????????????????????????????????????????????? | | ?????????????????????????????????????????????????? | | ?????????????????????????????????????????????????? | | ?????????????????????????????????????????????????? | | ???????????????????????????????????????????"T"???? | | ?????????????????????????????????????????????????? | +----------------------------------------------------+ Best States ------------- Heat Dissipation 31 Energy Generation 14 Energy Capacity 280 Matter Stores 300 Matter Capacity 300 Sight Range 16 Terrain Scan Range 16 Terrain Scan Density 10 Armor Coverage 150 Power Shielding 66 Evasion (%) 64 Recoil Reduction 2 Item Schematics ----------------- None Robot Schematics ------------------ None Fabricated ------------ Nothing Alien Tech Used ----------------- None Achievements -------------- None Challenges ------------ None Game ------ Seed CobblerZhirovPick Manual? 0 Play Time 00:37:25 Cumulative 34.8 hours Start 2024.04.06 @ 15:34:19 End 2024.04.06 @ 16:13:08 Sessions 1 Manual Loads 0 Difficulty Rogue Special Mode None Game No. 42 Rogue 42 Adventurer 0 Explorer 0 Win Type - Total 0 Types 0/0/0/0/0/0/0/0/0 Lore% 17 Gallery% 35 Achievement% 26 Wizard Run 0 Options --------- Layout 2 ASCII 0 Keyboard 0 Movement Numpad Keybinds 0 Fullscreen 2 Font 24/Smallcaps Map View 50x44 Zoom Use 0% Tactical HUD 0 Map Filters NONE Filters NONE Steam 1 RUN: 0f459304-9ea0-4e46-940d-74ebfe359067